fUSD/lending_fUSD_20251230
["ID","MTS","AMOUNT","RATE_DAILY","PERIOD"]
[400074806,1767070232638,-506.11672707,0.00015972,2]
[400074807,1767070232650,-909.51604653,0.00016,2]
[400074808,1767070232661,-150.0,0.00016016,2]
[400074809,1767070232671,-150.0,0.00016016,2]
[400074810,1767070232682,-613.89,0.00016114,2]
[400074811,1767070232694,-574.12855637,0.00016114,2]
[400074812,1767070232704,-150.0,0.00016137,2]
[400074813,1767070232716,-150.0,0.00016137,2]
[400074814,1767070232727,-150.0,0.00016137,2]
[400074815,1767070232739,-150.0,0.00016137,2]
[400074816,1767070232749,-150.0,0.00016137,2]
[400074817,1767070232761,-151.0,0.00016219,2]
[400074818,1767070232772,-500.0,0.00016219,2]
[400074819,1767070232783,-167.15,0.00016229,2]
[400074820,1767070232794,-166.66,0.00016237,2]
[400074821,1767070232807,-150.0,0.00016258,2]
[400074822,1767070232817,-150.0,0.00016258,2]
[400074823,1767070232828,-150.0,0.00016307,2]
[400074824,1767070232839,-152.01781292,0.00016338,2]
[400074825,1767070232850,-3206.83518696,0.00016338,2]
[400074826,1767070232862,-150.0,0.00016349,2]
[400074827,1767070232872,-613.89,0.00016388,2]
[400074828,1767070232884,-509.0,0.00016396,2]
[400074829,1767070232900,-500.0,0.00016404,2]
[400074830,1767070232915,-193.193408,0.00016405,2]
[400074831,1767070232927,-500.0,0.00016405,2]
[400074832,1767070232939,-280.59870248,0.00016405,2]
[400074833,1767070232950,-500.0,0.00016405,2]
[400074834,1767070232961,-500.0,0.00016405,2]
[400074835,1767070232971,-269.50980341,0.00016405,2]
[400074836,1767070232984,-223.17211178,0.00016405,2]
[400074837,1767070232994,-500.0,0.00016405,2]
[400074838,1767070233006,-500.0,0.00016405,2]
[400074839,1767070233017,-500.0,0.00016405,2]
[400074840,1767070233028,-500.0,0.00016405,2]
[400074841,1767070233039,-500.0,0.00016405,2]
[400074842,1767070233049,-500.0,0.00016405,2]
[400074843,1767070233060,-500.0,0.00016405,2]
[400074844,1767070233071,-500.0,0.00016405,2]
[400074845,1767070233083,-500.0,0.00016405,2]
[400074846,1767070233093,-500.0,0.00016405,2]
[400074847,1767070233104,-500.0,0.00016405,2]
[400074848,1767070233115,-500.0,0.00016405,2]
[400074849,1767070233126,-500.0,0.00016405,2]
[400074850,1767070233137,-500.0,0.00016405,2]
[400074851,1767070233148,-500.0,0.00016405,2]
[400074852,1767070233158,-500.0,0.00016405,2]
[400074853,1767070233169,-500.0,0.00016405,2]
[400074854,1767070233180,-500.0,0.00016405,2]
[400074855,1767070233192,-500.0,0.00016405,2]
[400074856,1767070233202,-508.6395723,0.00016405,2]
[400074857,1767070233218,-446.50687604,0.00016405,2]
[400074859,1767070237758,-151.0,0.00015948,2]
[400074860,1767070237769,-151.0,0.00015948,2]
[400074861,1767070237780,-193.57357587,0.00016405,2]
[400074862,1767070237791,-53.49312396,0.00016405,2]
[400074863,1767070237801,-500.0,0.00016405,2]
[400074864,1767070237811,-315.19628737,0.00016405,2]
[400074875,1767070238061,-184.80371263,0.00016405,2]
[400074877,1767070238071,-604.3518,0.00016405,2]
[400074879,1767070238083,-500.0,0.00016405,2]
[400074881,1767070238093,-500.0,0.00016405,2]
[400074883,1767070238103,-500.0,0.00016405,2]
[400074885,1767070238114,-573.00569741,0.00016405,2]
[400074888,1767070238124,-500.0,0.00016405,2]
[400074890,1767070238134,-204.20387632,0.00016405,2]
[400074892,1767070238144,-167.51545673,0.00016406,2]
[400074894,1767070238157,-898.25328278,0.00016406,2]
[400074896,1767070238169,-3482.74671722,0.00016406,2]
[400074898,1767070238179,-150.0,0.0001642,2]
[400074901,1767070238190,-495.19991823,0.00016438,2]
[400074903,1767070238200,-509.0,0.00016438,2]
[400074905,1767070238210,-5807.21,0.00016438,2]
[400074907,1767070238221,-450.38,0.00016445,2]
[400074909,1767070238231,-1349.67768817,0.00016469,2]
[400074911,1767070238241,-150.0,0.00016477,2]
[400074913,1767070238252,-150.72979008,0.00016482,2]
[400074916,1767070238265,-16.57020992,0.00016482,2]
[400074918,1767070238275,-150.0,0.00016501,2]
[400074920,1767070238286,-150.0,0.00016501,2]
[400074922,1767070238297,-233.61591145,0.00016542,2]
[400074924,1767070238307,-150.0,0.00016562,2]
[400074926,1767070238319,-166.66,0.00016565,2]
[400074929,1767070238329,-169.0,0.00016617,2]
[400074931,1767070238340,-150.0,0.00016647,2]
[400074933,1767070238350,-13.59814745,0.00016662,2]
[400074947,1767070238476,-74.42371862,0.00016662,2]
[400074950,1767070238489,-525.86813393,0.00016662,2]
[400074952,1767070238501,-595.37131296,0.00016662,2]
[400074954,1767070238511,-509.0,0.0001667,2]
[400074956,1767070238522,-509.0,0.00016681,2]
[400074958,1767070238532,-150.0,0.00016744,2]
[400074960,1767070238542,-150.0,0.00016744,2]
[400074962,1767070238553,-509.0,0.00016754,2]
[400074964,1767070238563,-195.0,0.00016771,2]
[400074966,1767070238574,-609.37360769,0.00016771,2]
[400074969,1767070238584,-150.0,0.00016774,2]
[400074971,1767070238595,-300.0,0.00016789,2]
[400074973,1767070238605,-440.62817376,0.00016789,2]
[400074975,1767070238617,-250.0,0.00016789,2]
[400074977,1767070238628,-150.0,0.00016816,2]
[400074979,1767070238640,-503.0,0.00016822,2]
[400074981,1767070238650,-509.0,0.0001686,2]
[400074984,1767070238661,-3776.4248472,0.00016886,2]
[400074986,1767070238671,-166.66,0.00016893,2]
[400074988,1767070238681,-155.0,0.000169,2]
[400074990,1767070238691,-155.0,0.000169,2]
[400074992,1767070238702,-528.58603757,0.000169,2]
[400074994,1767070238712,-642.94,0.00016935,2]
[400074996,1767070238722,-334.5472959,0.00016935,2]
[400074998,1767070238732,-297.56844821,0.00016936,2]
[400075110,1767070239909,-54.30042975,0.00016936,2]
[400075119,1767070239985,-262.07845216,0.00016936,2]
[400075121,1767070239995,-509.0,0.00016937,2]
[400075123,1767070240007,-509.0,0.00016976,2]
[400075125,1767070240017,-51738.16,0.00016986,2]
[400075127,1767070240027,-150.0,0.00016986,2]
[400075129,1767070240038,-150.0,0.00016986,2]
[400075131,1767070240048,-150.0,0.00016986,2]
[400075133,1767070240058,-150.0,0.00016986,2]
[400075135,1767070240068,-152.83843726,0.00016986,2]
[400075138,1767070240078,-150.78257058,0.00016986,2]
[400075140,1767070240088,-266.12074106,0.00016986,2]
[400075142,1767070240098,-150.0,0.00016986,2]
[400075144,1767070240108,-151.81689363,0.00016986,2]
[400075146,1767070240119,-150.00000001,0.00016986,2]
[400075148,1767070240129,-150.0,0.00016986,2]
[400075150,1767070240139,-481.74,0.00016986,2]
[400075152,1767070240149,-481.74,0.00016986,2]
[400075154,1767070240160,-481.74,0.00016986,2]
[400075157,1767070240170,-307.32179982,0.00016999,2]
[400075159,1767070240180,-306.84048733,0.00016999,2]
[400075161,1767070240190,-300.0,0.00016999,2]
[400075163,1767070240200,-670.98213381,0.00016999,2]
[400075165,1767070240210,-1812389.58939959,0.00017,2]
[400075167,1767070240220,-17369.90225707,0.00017,2]
[400075491,1767070243297,-380.05252024,0.00017,2]
[400075496,1767070243341,-109.4192077,0.00017,2]
[400075568,1767070244092,-305.66544165,0.00017,2]
[400075765,1767070245875,-97.00264116,0.00017,2]
[400075785,1767070246067,-1876.8110829,0.00017,2]
[400075786,1767070246079,-1869.7001,0.00017,2]
[400076073,1767070834179,-151.0,0.00013699,2]
[400076075,1767071239089,-181.29,0.00013699,2]
[400076076,1767071239110,-250.0,0.00014438,2]
[400076077,1767071239130,-250.0,0.00014438,2]
[400076078,1767071239150,-232.81357471,0.00014438,2]
[400076079,1767071351098,-17.18642529,0.00014438,2]
[400076080,1767071351120,-250.0,0.00014438,2]
[400076088,1767071431868,-200.0,0.00015888,2]
[400076089,1767071431878,-91.65158265,0.00015931,2]
[400076090,1767071431924,-200.50841735,0.00015931,2]
[400076091,1767071431934,-974.38,0.00016101,2]
[400076092,1767071431943,-151.0,0.0001624,2]
[400076093,1767071431954,-151.0,0.0001624,2]
[400076094,1767071431968,-151.0,0.00016242,2]
[400076095,1767071431982,-151.0,0.00016242,2]
[400076097,1767071431991,-151.0,0.00016252,2]
[400076099,1767071432002,-151.0,0.00016252,2]
[400076101,1767071432011,-1000.0,0.00016294,2]
[400076103,1767071432021,-538.99,0.00016309,2]
[400076104,1767071432031,-267.39183378,0.00016428,2]
[400076105,1767071432040,-1200.0,0.00016437,2]
[400076107,1767071432050,-300.0,0.00016437,2]
[400076109,1767071432060,-4839.34,0.00016438,2]
[400076112,1767071432070,-481.74,0.000165,2]
[400076114,1767071432079,-1685.35139972,0.00016767,2]
[400076116,1767071432089,-550.0,0.00016798,2]
[400076118,1767071432098,-197.79203801,0.00016799,2]
[400076120,1767071432107,-152.01781288,0.00016799,2]
[400076122,1767071432117,-4102.03516624,0.00016799,2]
[400076124,1767071432131,-163.52770626,0.00016799,2]
[400076126,1767071432141,-200.0,0.00016888,2]
[400076128,1767071432151,-553.64373807,0.00016888,2]
[400076130,1767071432161,-620.0,0.00016888,2]
[400076132,1767071432170,-151.0,0.00016888,2]
[400076134,1767071432179,-151.0,0.00016888,2]
[400076136,1767071432189,-262.3482341,0.00016888,2]
[400076138,1767071432198,-3014.92901925,0.00016889,2]
[400076140,1767071432208,-151.0,0.00016896,2]
[400076142,1767071432219,-493.84292283,0.00016898,2]
[400076145,1767071432233,-300.0,0.00016898,2]
[400076147,1767071432243,-500.0,0.00016898,2]
[400076149,1767071432253,-316.91435549,0.00016898,2]
[400076151,1767071432263,-500.0,0.00016898,2]
[400076153,1767071432273,-500.0,0.00016898,2]
[400076155,1767071432283,-205.47392838,0.00016898,2]
[400076157,1767071432292,-500.0,0.00016898,2]
[400076159,1767071432304,-445.40439692,0.00016898,2]
[400076161,1767071432314,-500.0,0.00016898,2]
[400076163,1767071432324,-500.0,0.00016898,2]
[400076165,1767071432334,-500.0,0.00016898,2]
[400076167,1767071432345,-500.0,0.00016898,2]
[400076169,1767071432354,-267.76875481,0.00016898,2]
[400076171,1767071432364,-394.70468696,0.00016898,2]
[400076173,1767071432373,-174.43,0.00016898,2]
[400076175,1767071432383,-200.02709707,0.00016898,2]
[400076177,1767071432393,-3509.0,0.00016899,2]
[400076179,1767071432403,-193803.07055663,0.00016899,2]
[400076182,1767071432415,-62520.37594618,0.00016899,2]
[400076184,1767071432428,-65768.79865306,0.00016899,2]
[400076186,1767071432444,-67637.43484388,0.00016899,2]
[400076188,1767071432455,-15656.97173617,0.00016899,2]
[400076220,1767071437850,-441.81823743,0.00016899,2]
[400076221,1767071437862,-483.05057557,0.00016899,2]
[400076222,1767071437876,-4314.88685927,0.00016899,2]
[400076223,1767071437909,-1733.86308309,0.00016899,2]
[400076224,1767071437920,-6888.75602592,0.00016899,2]
[400076225,1767071437931,-450.58499,0.00016899,2]
[400076226,1767071437979,-372.07179283,0.00016899,2]
[400076227,1767071437991,-3772.43745129,0.00016899,2]
[400076228,1767071438003,-1408.59317674,0.00016899,2]
[400076229,1767071438020,-2273.05774565,0.00016899,2]
[400076230,1767071438031,-2638.15312271,0.00016899,2]
[400076405,1767071440043,-301.92197159,0.00016899,2]
[400076853,1767071444419,-3127.9999,0.00016899,2]
[400076866,1767071444554,-1938.0774899,0.00016899,2]
[400076869,1767071444566,-1491.625,0.00016899,2]
[400076871,1767071444577,-1772.16665824,0.00016899,2]
[400076873,1767071444588,-4867.0,0.00016899,2]
[400077019,1767071446128,-3281.0519054,0.00016899,2]
[400077259,1767072440045,-166.66,0.00014883,2]
[400077260,1767072440070,-195.0,0.00014944,2]
[400077261,1767072440095,-260.55062385,0.00015004,2]
[400077262,1767072440120,-250.0,0.00015004,2]
[400077263,1767072440144,-229.08399187,0.00015114,2]
[400077264,1767072451114,-1221.792565,0.00015125,2]
[400077265,1767072451136,-600.0,0.00015164,2]
[400077266,1767072451158,-166.66,0.00015197,2]
[400077267,1767072451179,-180.28117495,0.00015202,2]
[400077268,1767072451200,-639.83538298,0.00015313,2]
[400077269,1767072451222,-166.66,0.0001551,2]
[400077270,1767072451244,-1200.0,0.00015554,2]
[400077271,1767072451264,-300.0,0.00015554,2]
[400077272,1767072451286,-300.0,0.00015554,2]
[400077273,1767072451307,-300.0,0.00015554,2]
[400077274,1767072451329,-109.06783319,0.00015555,2]
[400077287,1767072631954,-180.28117495,0.00015455,2]
[400077289,1767072631965,-435.47085044,0.00015455,2]
[400077291,1767072631975,-323.0,0.00015554,2]
[400077292,1767072631985,-300.0,0.00015554,2]
[400077293,1767072631995,-90.93216681,0.00015555,2]
[400077294,1767072632005,-207.4,0.00015555,2]
[400077295,1767072632015,-215.0738,0.00015555,2]
[400077296,1767072632025,-223.0315306,0.00015555,2]
[400077298,1767072632035,-231.28369723,0.00015555,2]
[400077299,1767072632045,-239.84119403,0.00015555,2]
[400077300,1767072632055,-248.71531821,0.00015555,2]
[400077301,1767072632064,-257.91778498,0.00015555,2]
[400077302,1767072632075,-119.8086436,0.00015615,3]
[400077303,1767072632087,-879.1913564,0.00015615,3]
[400077304,1767072632096,-297.8233938,0.00015744,2]
[400077305,1767072632105,-12.3924718,0.00015744,2]
[400077306,1767072632117,-322.56943185,0.00015744,2]
[400077307,1767072632127,-166.66,0.00015823,2]
[400077308,1767072632137,-161.79987893,0.00015899,2]
[400077309,1767072632148,-3078.20012107,0.00015899,2]
[400077310,1767072632158,-267.46074303,0.00015909,2]
[400077311,1767072632168,-769.6544174,0.00015919,2]
[400077313,1767072632188,-825.31691114,0.00015919,2]
[400077314,1767072632200,-413.8620027,0.00015919,2]
[400077315,1767072632212,-491.6749,0.00015919,2]
[400077316,1767072632246,-2178.66176876,0.00015919,2]
[400077317,1767072632256,-163.76,0.00015965,2]
[400077318,1767072632265,-1918.08,0.00015982,2]
[400077320,1767072632275,-300.0,0.00015999,2]
[400077322,1767072632286,-500.0,0.00015999,2]
[400077324,1767072632295,-500.0,0.00015999,2]
[400077325,1767072632306,-455.67358047,0.00015999,2]
[400077326,1767072632315,-500.0,0.00015999,2]
[400077327,1767072632325,-500.0,0.00015999,2]
[400077328,1767072632335,-24144.04790549,0.00016,4]
[400077333,1767072638125,-254.71020387,0.00015999,2]
[400077334,1767072638135,-500.0,0.00015999,2]
[400077335,1767072638145,-414.27301511,0.00015999,2]
[400077336,1767072638155,-500.0,0.00015999,2]
[400077337,1767072638165,-500.0,0.00015999,2]
[400077338,1767072638175,-500.0,0.00015999,2]
[400077339,1767072638184,-500.0,0.00015999,2]
[400077340,1767072638194,-500.0,0.00015999,2]
[400077341,1767072638204,-500.0,0.00015999,2]
[400077342,1767072638213,-3601.90301461,0.00016,4]
[400077343,1767072638230,-1487.85982699,0.00016,4]
[400077518,1767072640159,-433.4660998,0.00016,4]
[400077519,1767072640259,-412.3282598,0.00016,4]
[400077520,1767072640327,-316.49701509,0.00016,4]
[400077521,1767072640384,-384704.801235,0.00016,4]
[400077522,1767072640395,-167.6,0.00016103,2]
[400077523,1767072640405,-166.66,0.00016137,2]
[400077524,1767072640415,-5000.00971767,0.000162,5]
[400077525,1767072640426,-200.0,0.0001634,2]
[400077526,1767072640436,-250.0,0.00016372,2]
[400077527,1767072640447,-386.78212137,0.00016372,2]
[400077528,1767072640458,-600.0,0.00016372,2]
[400077529,1767072640467,-250.0,0.00016372,2]
[400077530,1767072640478,-195.0,0.00016372,2]
[400077531,1767072640488,-1743.89422697,0.00016372,2]
[400077532,1767072640497,-169.0,0.00016383,2]
[400077533,1767072640509,-5528.0,0.000164,3]
[400077534,1767072640518,-500.0,0.00016438,2]
[400077535,1767072640528,-500.0,0.00016438,2]
[400077536,1767072640538,-500.0,0.00016438,2]
[400077537,1767072640548,-500.0,0.00016438,2]
[400077539,1767072640558,-500.0,0.00016438,2]
[400077540,1767072640567,-281.73797012,0.00016438,2]
[400077541,1767072640577,-500.0,0.00016438,2]
[400077542,1767072640586,-166.66,0.0001645,2]
[400077543,1767072640595,-169.0,0.00016471,2]
[400077544,1767072640610,-169.0,0.00016506,2]
[400077545,1767072640621,-359.10523831,0.000166,2]
[400077546,1767072640632,-195.0,0.00016638,2]
[400077547,1767072640645,-4114.32213061,0.0001666,2]
[400077548,1767072640655,-500.0,0.00016678,2]
[400077549,1767072640665,-620.0,0.00016678,2]
[400077550,1767072640675,-208.9192932,0.00016678,2]
[400077551,1767072640685,-500.0,0.00016678,2]
[400077552,1767072640696,-500.0,0.00016678,2]
[400077553,1767072640707,-500.0,0.00016678,2]
[400077554,1767072640718,-553.64373807,0.00016678,2]
[400077555,1767072640728,-500.0,0.00016678,2]
[400077556,1767072640738,-500.0,0.00016678,2]
[400077557,1767072640748,-500.0,0.00016678,2]
[400077558,1767072640759,-500.0,0.00016678,2]
[400077559,1767072640769,-500.0,0.00016678,2]
[400077560,1767072640779,-500.0,0.00016678,2]
[400077561,1767072640790,-500.0,0.00016678,2]
[400077562,1767072640801,-500.0,0.00016678,2]
[400077563,1767072640811,-500.0,0.00016678,2]
[400077564,1767072640822,-500.0,0.00016678,2]
[400077565,1767072640832,-500.0,0.00016678,2]
[400077566,1767072640842,-500.0,0.00016678,2]
[400077567,1767072640852,-500.0,0.00016678,2]
[400077568,1767072640862,-500.0,0.00016678,2]
[400077569,1767072640872,-500.0,0.00016678,2]
[400077570,1767072640883,-129.29506453,0.00016678,2]
[400077571,1767072640896,-370.70493547,0.00016678,2]
[400077572,1767072640906,-500.0,0.00016678,2]
[400077573,1767072640916,-523.04464741,0.00016678,2]
[400077574,1767072640926,-151.0,0.00016678,2]
[400077575,1767072640936,-151.0,0.00016678,2]
[400077576,1767072640946,-151.0,0.00016678,2]
[400077577,1767072640955,-151.0,0.00016678,2]
[400077578,1767072640970,-151.0,0.00016678,2]
[400077579,1767072640980,-151.0,0.00016678,2]
[400077580,1767072640991,-151.0,0.00016678,2]
[400077581,1767072641001,-8050.9526,0.00016688,2]
[400077582,1767072641012,-5835.66024628,0.00016699,2]
[400077583,1767072641021,-1000.0,0.000167,2]
[400077584,1767072641031,-1008.0,0.000167,2]
[400077585,1767072641041,-217.64854156,0.00016757,2]
[400077586,1767072641051,-76758.7265,0.00016788,2]
[400077587,1767072641061,-33520.8529,0.00016799,2]
[400077588,1767072641071,-1000.0,0.00016799,2]
[400077589,1767072641082,-169.0,0.00016844,2]
[400077590,1767072641092,-500.0,0.00016849,2]
[400077591,1767072641102,-163.76,0.00016851,2]
[400077592,1767072641112,-169.0,0.00016856,2]
[400077593,1767072641122,-451.66,0.00016889,2]
[400077594,1767072641132,-500.0,0.0001689,2]
[400077595,1767072641142,-1980.2211921,0.00016899,2]
[400077596,1767072641152,-172.5001693,0.00016899,2]
[400077597,1767072641162,-1589.59498707,0.00016899,2]
[400077604,1767072645986,-4765.67646693,0.00016899,2]
[400077605,1767072645996,-3280.24136034,0.00016899,2]
[400077606,1767072646007,-259.03172466,0.00016899,2]
[400077607,1767072646017,-51.51427534,0.00016899,2]
[400077608,1767072646043,-1962.998755,0.00016899,2]
[400077609,1767072646055,-581.45672485,0.00016899,2]
[400077628,1767072750918,156.42,7.971e-05,2]
[400077629,1767072750983,156.42,8.414e-05,2]
[400077630,1767072751180,156.42,8.857e-05,2]
[400077631,1767072751388,156.42,9.3e-05,2]
[400077632,1767072751586,156.42,9.743e-05,2]
[400077633,1767072751799,156.42,0.00010185,2]
[400077634,1767072752005,156.42,0.00010628,2]
[400077635,1767072752202,156.42,0.00011071,2]
[400077636,1767072752400,156.42,0.00011514,2]
[400077637,1767072752899,156.42,0.00011957,2]
[400077638,1767072753087,156.42,0.000124,2]
[400077639,1767072753420,156.42,0.00012842,2]
[400077640,1767072753848,156.42,0.00013285,2]
[400077641,1767072754156,156.42,0.00013728,2]
[400077642,1767072754345,156.42,0.00014171,2]
[400077643,1767072754578,156.42,0.00014614,2]
[400077644,1767072754767,156.42,0.00015057,2]
[400077704,1767073003822,315.67,0.00013699,2]
[400077733,1767073117816,2646.35538428,0.000145,5]
[400077734,1767073125762,227353.64461572,0.00014,5]
[400077768,1767073533137,-206.82819589,0.000147,5]
[400077771,1767073551138,2557.0,0.00030137,120]
[400077776,1767073652079,-195.0,0.00015043,2]
[400077777,1767073652102,-150.0,0.00015286,2]
[400077778,1767073652124,-300.0,0.00015287,2]
[400077779,1767073652145,-150.0,0.00015288,2]
[400077780,1767073652165,-150.0,0.00015288,2]
[400077781,1767073652429,-150.0,0.00015288,2]
[400077782,1767073652450,-150.0,0.00015288,2]
[400077783,1767073652471,-150.0,0.00015288,2]
[400077784,1767073652492,-150.53597625,0.00015288,2]
[400077785,1767073652513,-150.0,0.00015288,2]
[400077786,1767073652534,-150.0,0.00015288,2]
[400077787,1767073652555,-150.0,0.00015288,2]
[400077788,1767073652575,-150.0,0.00015288,2]
[400077789,1767073652600,-150.0,0.00015288,2]
[400077790,1767073652620,-195.0,0.00015367,2]
[400077791,1767073652647,-156.42,0.000155,2]
[400077792,1767073652669,-200.0,0.00015624,2]
[400077793,1767073652690,-307.19,0.00015625,2]
[400077794,1767073652712,-509.0,0.00015648,2]
[400077795,1767073652735,-509.0,0.00015664,2]
[400077796,1767073652757,-509.0,0.00015665,2]
[400077797,1767073652779,-509.0,0.00015692,2]
[400077798,1767073652799,-150.0,0.00015712,2]
[400077799,1767073652819,-150.0,0.00015712,2]
[400077800,1767073652843,-300.0,0.00015807,2]
[400077801,1767073652864,-300.0,0.00015807,2]
[400077802,1767073652885,-150.0,0.00015854,2]
[400077803,1767073652905,-150.0,0.00015854,2]
[400077804,1767073652928,-150.0,0.00015854,2]
[400077805,1767073652949,-1783.0728,0.000159,2]
[400077806,1767073652970,-509.0,0.00015907,2]
[400077807,1767073652993,-509.0,0.0001591,2]
[400077808,1767073653015,-156.42,0.00015942,2]
[400077809,1767073653041,-510.0,0.00015977,2]
[400077810,1767073653062,-151.0,0.0001598,2]
[400077811,1767073653084,-151.0,0.0001598,2]
[400077812,1767073653104,-151.0,0.00015984,2]
[400077813,1767073653125,-151.0,0.00015984,2]
[400077814,1767073653148,-509.0,0.00015996,2]
[400077815,1767073653170,-281.54936579,0.00016028,2]
[400077838,1767073832115,-1000.0,0.00015396,2]
[400077839,1767073832125,-360.07,0.00015425,2]
[400077840,1767073832135,-500.0,0.00015458,2]
[400077841,1767073832146,-1852.42,0.00015479,2]
[400077842,1767073832156,-227.45063421,0.00016028,2]
[400077843,1767073832166,-362.62619391,0.00016029,2]
[400077844,1767073832176,-200.0,0.00016029,2]
[400077845,1767073832186,-207.4,0.00016029,2]
[400077846,1767073832196,-215.0738,0.00016029,2]
[400077847,1767073832205,-184.03592188,0.00016029,2]
[400077848,1767073832217,-38.99560872,0.00016029,2]
[400077849,1767073832227,-231.28369723,0.00016029,2]
[400077850,1767073832237,-239.84119403,0.00016029,2]
[400077851,1767073832247,-248.71531821,0.00016029,2]
[400077852,1767073832256,-147.98018181,0.00016029,2]
[400077853,1767073832269,-109.93760317,0.00016029,2]
[400077854,1767073832279,-267.46074303,0.00016029,2]
[400077855,1767073832289,-509.0,0.00016073,2]
[400077856,1767073832300,-509.0,0.00016073,2]
[400077857,1767073832313,-371.94629338,0.00016137,2]
[400077858,1767073832325,-126.05370662,0.00016137,2]
[400077859,1767073832334,-150.0,0.00016137,2]
[400077860,1767073832344,-150.0,0.00016137,2]
[400077861,1767073832355,-91.94629338,0.00016153,2]
[400077862,1767073832367,-58.05370662,0.00016153,2]
[400077863,1767073832377,-151.0,0.00016204,2]
[400077864,1767073832388,-113.53950726,0.00016204,2]
[400077865,1767073832404,-37.46049274,0.00016204,2]
[400077866,1767073832414,-151.0,0.00016204,2]
[400077867,1767073832425,-151.0,0.00016204,2]
[400077868,1767073832434,-190.0,0.00016231,2]
[400077869,1767073832444,-498.79714995,0.00016265,2]
[400077871,1767073832465,-1190.51079332,0.00016265,2]
[400077872,1767073832477,-9.94569604,0.00016265,2]
[400077873,1767073832487,-333.36674876,0.00016265,2]
[400077874,1767073832497,-48.68069006,0.00016265,2]
[400077875,1767073832509,-117.26311964,0.00016265,2]
[400077876,1767073832519,-142.76936767,0.00016265,2]
[400077878,1767073832535,-11367.31893508,0.00016265,2]
[400077880,1767073832546,-4549.36033688,0.00016265,2]
[400077882,1767073832556,-600.0,0.0001628,2]
[400077884,1767073832565,-151.0,0.00016325,2]
[400077885,1767073832575,-500.0,0.00016327,2]
[400077886,1767073832585,-500.0,0.00016327,2]
[400077887,1767073832595,-500.0,0.00016327,2]
[400077888,1767073832605,-500.0,0.00016327,2]
[400077889,1767073832616,-500.0,0.00016327,2]
[400077890,1767073832625,-500.0,0.00016327,2]
[400077891,1767073832635,-500.0,0.00016327,2]
[400077892,1767073832645,-500.0,0.00016327,2]
[400077893,1767073832656,-500.0,0.00016327,2]
[400077894,1767073832665,-500.0,0.00016327,2]
[400077895,1767073832676,-500.0,0.00016327,2]
[400077896,1767073832686,-405.78350405,0.00016327,2]
[400077897,1767073832696,-500.0,0.00016327,2]
[400077898,1767073832706,-500.0,0.00016327,2]
[400077899,1767073832716,-500.0,0.00016327,2]
[400077900,1767073832725,-500.0,0.00016327,2]
[400077901,1767073832736,-500.0,0.00016327,2]
[400077902,1767073832746,-500.0,0.00016327,2]
[400077903,1767073832757,-500.0,0.00016327,2]
[400077904,1767073832767,-500.0,0.00016327,2]
[400077905,1767073832777,-500.0,0.00016327,2]
[400077906,1767073832787,-500.0,0.00016327,2]
[400077907,1767073832798,-500.0,0.00016327,2]
[400077908,1767073832807,-500.0,0.00016327,2]
[400077909,1767073832822,-500.0,0.00016327,2]
[400077910,1767073832832,-399.07824037,0.00016327,2]
[400077912,1767073838234,-7822.44673342,0.00016265,2]
[400077913,1767073838247,-1599.25434695,0.00016265,2]